{"text_format":"3","workbook":"xlsx","n_sheets":1,"sheets":["厨房设备+排烟设备"],"not_rendered":{"images":106,"defined_names":2},"read":"whole","date_system":"1900"}

{"sheet":"厨房设备+排烟设备","index":0,"n_rows":233,"n_cols":10,"rows_kept":233,"merged":[[0,0,0,9],[2,0,2,1],[7,0,7,1],[13,0,13,1],[15,0,15,1],[17,0,17,1],[31,0,31,1],[43,0,43,1],[45,10,45,11],[51,10,51,11],[58,0,58,1],[80,0,80,1],[82,0,82,1],[101,0,101,1],[118,0,118,1],[136,0,136,1],[153,0,153,1],[160,0,160,1],[177,0,177,1],[183,0,183,1],[195,0,195,1],[201,0,201,1],[214,0,214,1],[226,0,226,1],[226,2,226,5],[231,0,231,1],[231,2,231,6],[231,7,231,9],[232,0,232,9]]}
["西站综合楼厨房设备+排烟系统招标采购控制价"]
["编号","设备名称","尺寸(WxDxH)","技术参数","单位","数量","单价最高限价（元）","金额（元）","产品图片","备注"]
["AA一次更衣室"]
["AA01","风幕机","L=1200MM","说明：    \n风幕机提供一道有效、强力的空气门,既可以挂在墙上，也可悬挂在房间天花板上,附设导风板可以容易地调整送风的方向,开关设于机体上，可提供高、低两种风速，安装于任何场合均能保持与周围环境的协调.","台",1,360,{"$f":"ROUND(F4*G4,0)","v":360}]
["AA02","更衣柜","四门","说明：采用优质冷轧板，喷漆工艺，静电封魔喷塑而成环保无毒，表面光滑，铝合金拉手，精致锁具，一门一锁，","台",6,650,{"$f":"ROUND(F5*G5,0)","v":3900},null,"厂制品"]
["AA03","干手器","240*240*230","功率：2KW\n风速：大于18M/S\n干手时间：12S\n防水等　级：IPX1\n规格：冷热型","台",2,150,{"$f":"ROUND(F6*G6,0)","v":300}]
["AA04","洗手星","400*300*450","说明：采用优质304不锈钢板制作\n1、台面采用δ1.0mm、304不锈钢板；\n2、星盆斗采用δ1.0mm、304不锈钢机冲。             ","台",2,750,{"$f":"ROUND(F7*G7,0)","v":1500},null,"厂制品"]
["AB仓库"]
["AB01","四门碗柜","1200*500*1800","说明：采用优质304不锈钢板制作\n柜身:δ1.0mm、304不锈钢板                                                     侧板:δ1.0mm、304不锈钢板                                                     门板:δ1.0mm、304不锈钢板\n层板:δ1.0mm、304不锈钢板                                                     台脚通:δ1.0mm*51mm不锈钢连重力脚                                    采用轨道式吊轮无槽推门。","台",2,2600,{"$f":"ROUND(F9*G9,0)","v":5200},null,"厂制品"]
["AB04","米面架","1200*500*200","说明：采用优质304不锈钢管制作\n1、立柱采用1.0mm38*38、304不锈钢方管；\n2、横档采用1.0mm38*38、中间38*25方管、304不锈钢方管；\n3、调节脚采用全金属外包不锈钢可调式子弹脚；\n4、为格栅式结构。 ","台",2,650,1300,null,"厂制品"]
["AB04-A","四层栅格层架","1200*500*1500","说明：采用优质304不锈钢管制作\n1、立柱采用1.0mm38*38、304不锈钢方管；\n2、横档采用1.0mm38*25、中间25方管、304不锈钢方管；\n3、调节脚采用全金属外包不锈钢可调式子弹脚；\n4、每层为格栅式结构，四层。 ","台",2,1200,2400,null,"厂制品"]
["AB05","粘捕式灭蝇灯","355*105*235","1.电压：220V\n2.功率:10W\n3.用胶：粘性持久，不易干胶，安全环保。苍蝇背景图案：根据苍蝇聚集采食习惯设计, 增加飞虫诱捕效果\n4.电子式镇流器：故障率低，寿命长，节能，具电压保护功能\n5.U型卡槽设计：使特殊波长灯管光频 直射到粘蝇板的 各点距离均等，加强对飞虫的吸引力和诱捕效果","台",1,50,50]
["AB06","四层平板货架","1200*500*1500","说明：采用优质304不锈钢管制作\n1、立柱采用1.0mm38*38、304不锈钢方管；\n2、调节脚采用全金属外包不锈钢可调式子弹脚；\n3、每层为平板式结构，四层。 ","台",2,1200,2400,null,"厂制品"]
["AB主、副食库，杂物"]
["AB03","平板车","850*500*850","说明：采用优质304不锈钢板制作\n1、车身采用δ1.0mm、优质不锈钢板；\n2、设置车推手；\n3、配4只防滑、耐磨万向轮优质胶轮，2只带刹车製。","台",1,950,950,null,"厂制品"]
["AB加工间"]
["AB09","风幕机","L=1200MM","说明：    \n风幕机提供一道有效、强力的空气门,既可以挂在墙上，也可悬挂在房间天花板上,附设导风板可以容易地调整送风的方向,开关设于机体上，可提供高、低两种风速，安装于任何场合均能保持与周围环境的协调.","台",1,360,360]
["AC加工间"]
["AC01","电热水器","60L","1.密闭型储水式电热水器                                   \n2.款式: 横式                                 \n3.能效等级: 一级","台",2,1000,2000]
["AC02","高压花洒龙头","JXD-5805A","1.铜螺杆阀芯，一字手柄                                                              2.开单孔22mm安装                                 \n3.不锈钢软管配大流量喷阀，耐热手柄                     \n4.纯黄铜底座","台",1,650,650]
["AC03","风幕机","L=1200MM","说明：    \n风幕机提供一道有效、强力的空气门,既可以挂在墙上，也可悬挂在房间天花板上,附设导风板可以容易地调整送风的方向,开关设于机体上，可提供高、低两种风速，安装于任何场合均能保持与周围环境的协调.","台",1,360,360]
["AC04","挂墙双层架","2500*350*680","说明：采用优质304不锈钢板制作\n台面：δ1.0mm、304不锈钢板","米",2.5,500,1250,null,"厂制品"]
["AC05","粘捕式灭蝇灯","355*105*235","1.电压：220V\n2.功率:10W\n3.用胶：粘性持久，不易干胶，安全环保。苍蝇背景图案：根据苍蝇聚集采食习惯设计, 增加飞虫诱捕效果\n4.电子式镇流器：故障率低，寿命长，节能，具电压保护功能\n5.U型卡槽设计：使特殊波长灯管光频 直射到粘蝇板的 各点距离均等，加强对飞虫的吸引力和诱捕效果","台",1,50,50]
["AC06","挂墙双层架","5470*350*230","说明：采用优质304不锈钢板制作\n台面：δ1.0mm、304不锈钢板","米",5.47,500,2735,null,"厂制品"]
["AC07","双层平板工作台带靠背","1000*700*800+150","说明：采用优质304不锈钢板制作\n台面:δ1.0mm、304不锈钢板\n层板:δ1.0mm、304不锈钢方板\n立柱:δ1.0mm*直径51、304不锈钢圆管                                         台脚通:ф51不锈钢连子弹脚  \n支撑梁:不锈钢制作","台",1,950,950,null,"厂制品"]
["AC09","双层平板工作台带靠背","750*700*800+150","说明：采用优质304不锈钢板制作\n台面:δ1.0mm、304不锈钢板\n层板:δ1.0mm、304不锈钢方板\n立柱:δ1.0mm*直径51、304不锈钢圆管                                         台脚通:ф51不锈钢连子弹脚  \n支撑梁:不锈钢制作","台",2,850,1700,null,"厂制品"]
["AC10","大单星盆水池","1000*700*800+150","说明：采用优质304不锈钢板制作\n1、台面采用δ1.0mm、304不锈钢板；\n2、星盆斗采用δ1.0mm、304不锈钢机冲；              \n3、脚管采用1.0mmφ38、304不锈钢圆管；\n4、横档采用1.0mmφ25、304不锈钢圆管；\n5、调节脚采用全金属外包不锈钢子弹脚；\n6、大单星盆，配星盆去水槽，隔渣网。","台",4,950,3800,null,"厂制品"]
["AC11","高压洗地枪","10米","说明：软管长度：10米 开发式                                  \n流量：5.37升/分钟\n喉管自动回卷装置(棘轮系统，防锁死，棘轮保持放松)\n软管，可承受120°C的高温以及300PSI高压                                                       \n可安装于墙壁、天花板或台柜下； \n配置喉管止动器，可调节；","台",1,1200,1200]
["AC12","绞切肉机","530*370*730","功率：1.5KW                          \n生产量：460KG/H                         \n1、能绞切猪肉、牛肉、羊肉及其他各种肉类，所绞肉质细腻，所切肉片厚度均匀适中。\n2、结构紧凑，性能可靠，效率高，操作简单方便。","台",1,2600,2600]
["AC14","杀鱼台","1500*700*800+150","说明：采用优质304不锈钢板制作\n1、台面采用δ1.0mm、304不锈钢板；\n2、星盆斗采用δ1.0mm、304不锈钢机冲；              \n3、脚管采用1.0mmφ38、304不锈钢圆管；\n4、横档采用1.0mmφ25、304不锈钢圆管；\n5、调节脚采用全金属外包不锈钢子弹脚；\n6、右单星带板、配星盆去水槽，隔渣网。","台",1,950,950,null,"厂制品"]
["AD09-1","双温水龙头","双温","说明：采用不锈钢制作","台",5,80,400]
["AD切配区"]
["AD01","风幕机","L=1200MM","说明：    \n风幕机提供一道有效、强力的空气门,既可以挂在墙上，也可悬挂在房间天花板上,附设导风板可以容易地调整送风的方向,开关设于机体上，可提供高、低两种风速，安装于任何场合均能保持与周围环境的协调.","台",1,360,360]
["AD02","热风循环刀具砧板组合消毒柜","1225*580*1525","容积：600L                                   \n功率：1250W  电压：220V/50HZ   \n装载数量：20把刀+8块砧板                                   不锈钢柜门加钢化玻璃透窗,全无磁不锈钢箱体,臭氧+紫外线+隐藏式发热，中温热风循环多功能刀具砧板组合消毒柜。","台",1,3600,3600,null,"厂制品"]
["AD03","四层沥水货架","1200*500*300","说明：采用优质304不锈钢管制作\n1、立柱采用1.0mm38*38、304不锈钢方管；\n2、横档采用1.0mm38*38、中间38*25方管、304不锈钢方管；\n3、调节脚采用全金属外包不锈钢可调式子弹脚；\n4、为格栅式结构。 ","台",2,600,1200,null,"厂制品"]
["AD04","四门冰箱","1200*710*1980","容量：900L                          \n制冷方式：直冷 温度范围：保鲜-5℃～+5℃冷冻0℃～-15℃。\n1、板材内箱优质无磁不锈钢板；加厚型发泡层，提高保温性能，超大空间，冷却速度快，更节能；\n2、釆用独立机组双压缩机双冷凝器双冷凝风机可整体抽出机组拆卸更换，到场即可修复，无需现场检修","台",3,3900,11700]
["AD05","粘捕式灭蝇灯","355*105*235","1.电压：220V\n2.功率:10W\n3.用胶：粘性持久，不易干胶，安全环保。苍蝇背景图案：根据苍蝇聚集采食习惯设计, 增加飞虫诱捕效果\n4.电子式镇流器：故障率低，寿命长，节能，具电压保护功能\n5.U型卡槽设计：使特殊波长灯管光频 直射到粘蝇板的 各点距离均等，加强对飞虫的吸引力和诱捕效果","台",1,50,50]
["AD06","全自动多功能切菜机","1160*560*1280","功率：3KW                          \n生产量：300-800KG/H                         \n厚片、薄片、切四角丝、切圆丝、切条、切角块、切斜片、切段均可调。","台",1,3800,3800]
["AD07","开水器带底座","12KW","电源种类：50HZ/380V\n功率：12KW\n整体采用优质不锈钢制造，外形设计美观大方，结构紧凑，采用名厂电器原件，特设缺水，防干烧功能，全自动进水，控水，自动控温空能，省时省电.","台",1,950,950,null,"厂制品"]
["AD08","挂墙双层架","6100*350*680","说明：采用优质304不锈钢板制作\n台面：δ1.0mm、304不锈钢板","米",6.1,500,3050,null,"厂制品"]
["AD09","单星盆水池柜","700*800*800+150","说明：采用优质304不锈钢板制作\n1、台面采用δ1.0mm、304不锈钢板；\n2、星盆斗采用δ1.0mm、304不锈钢机冲；              \n3、脚管采用1.0mmφ38、304不锈钢圆管；\n4、横档采用1.0mmφ25、304不锈钢圆管；\n5、调节脚采用全金属外包不锈钢子弹脚；\n6、单星盆，配星盆去水槽，隔渣网。","台",1,1200,1200,null,"厂制品"]
["AD10","双门平台雪柜","1800*800*950","电压：220V功率：0.20kw容量：450L；制冷方式：直冷 温度范围：保鲜-5℃～+5℃\n1、板材内箱优质无磁不锈钢板，前面板优质无磁不锈钢板，门面板优质无磁不锈钢板，外侧板优质无磁不锈钢板；加厚型发泡层，提高保温性能，超大空间，冷却速度快，更节能；","台",3,3200,9600]
["AD11","高压洗地枪","10米","说明：软管长度：10米 开发式                                  \n流量：5.37升/分钟\n喉管自动回卷装置(棘轮系统，防锁死，棘轮保持放松)\n软管，可承受120°C的高温以及300PSI高压                                                       \n可安装于墙壁、天花板或台柜下； \n配置喉管止动器，可调节；","台",2,1200,2400]
["AE主厨房"]
["AE01","油烟净化一体机","L*1200*995","1.国标不锈钢材质，坚实耐用，美观抗油污\n2.烟罩净化一体化，节省厨房空间                                          3.双层除油分离技术，高效回收废油，纳米涂层，易清洗\n4.高密度304材质钢丝拦截网，高吸附，均衡整流\n5.高低压静电电场，油烟吸附率高达95%以上\n6.高转速大风量低噪音风机，更稳定，更安静\n7.可变口风口设计，安装无烦恼，适用更广\n8.管道无积油，免清洗，维护成本低，更安全\n9.一键启动，无需专业人士操作，更直观，更简便","米",14.2,4500,63900,null,"厂制品"]
["AE02","电磁双头矮汤炉","1400*700*1200","锅(mm)：微晶板                  \n功率：15Kw*2 电压：380V/50Hz   \n产品特点\n· 全新防水、防油烟、防虫设计\n· 优质304不锈钢外壳\n· 优质密封胶，严防渗水\n· 耐600度高温，抗冲击，高强度微晶玻璃\n· 智能显示和自动报警装置\n· 18重安全保护设置，防止意外事故发生\n· 软启动技术，延长设备使用寿命\n· 智能化数字机芯，优质元件 ，工作稳定可靠\n· 定时功能，方便省心","台",1,11000,11000,null,"厂制品"]
["AE03","双通工作台","1800*800*850","说明：采用优质304不锈钢板制作\n台面:δ1.0mm、304不锈钢板\n侧板:δ1.0mm、304不锈钢板\n层板:δ1.0mm、304不锈钢板                         \n门板:δ1.0mm、304不锈钢板，双向移门\n台脚通:δ1.0mm*60重力脚\n衬板:δ15mm夹心板                                               \n支撑梁:不锈钢制作","台",4,2500,10000,null,"厂制品"]
["AE04","双通暖碟柜","1800*800*800","说明：采用优质304不锈钢板制作\n台面:δ1.0mm、304不锈钢板\n侧板:δ1.0mm、304不锈钢板\n层板:δ1.0mm、304不锈钢板                         \n门板:δ1.0mm、304不锈钢板\n台脚通:δ1.0mm*60重力脚\n衬板:δ15mm夹心板                                                        支撑梁:不锈钢制作\n配发热管及热风系统，温控器一套，自动控温。","台",1,2800,2800,null,"厂制品"]
["AE05","双门蒸饭柜","24盘","说明：采用优质304不锈钢板制作                         \n采用耐高温聚胺酯整体发泡           \n一次性压成型的不锈钢层架\n全自动浮球进水功能,缺水自给,满水自停,安全卸气阀\n内部采用国际钢板1.0mm,∠30×2国际角钢，全自动进水，电量：12KW*2/3PH/380V。","台",1,2600,2600,null,"厂制品"]
["AE06","炉拼台","400*1100*800+400","说明：采用优质304不锈钢板制作\n台面：δ1.0mm、304不锈钢板\n前板,背板：δ1.0mm、304不锈钢板                             \n和炉灶配合安装","台",2,800,1600,null,"厂制品"]
["AE07","燃气双头双尾小炒灶","2000*1200*800+400","说明：采用优质304不锈钢板制作\n台面：δ1.0mm、304不锈钢板                        \n围板：δ1.0mm、304不锈钢板\n炉头采用节能气体燃烧机             \n具有电子点火,熄火保护控制模块.\n风机开关设有延时防空烧组合配置                                         高强耐火铸铁一次成型节能炉体 \n燃料：天然气\n风机：中压风机\n炉脚：ф50㎜镀锌管及调节螺丝组成\n隔热层： 采用硅酸盐保温材料隔热       ","台",1,10000,10000,null,"厂制品"]
["AE08","电磁双头大炒炉","2000*1200*800","锅(mm)：Φ800                                  \n功率：20Kw*2 电压：380V/50Hz   \n产品特点:\n1、全新防水、防油烟、防虫设计\n2、优质304不锈钢外壳\n3、配炒菜灶不锈钢锅及炒菜灶水龙头\n4、优质密封胶，严防渗水\n5、前置水阀，方便耐用\n6、八段火力细分调节，确保温度均匀和食品美味\n7、智能显示和自动报警装置\n8、18重安全保护设置，防止意外事故发生\n9、软启动技术，延长设备使用寿命\n10、智能化数字机芯，优质元件 ，工作稳定可靠","台",1,14500,14500,null,"厂制品"]
["AE09","燃气单头大锅灶","1000*1200*800+400","说明：采用优质304不锈钢板制作\n台面：δ1.0mm、304不锈钢板                        \n围板：δ1.0mm、304不锈钢板\n炉头采用节能气体燃烧机             \n具有电子点火,熄火保护控制模块.\n风机开关设有延时防空烧组合配置                                        高强耐火铸铁一次成型节能炉体 \n燃料：天然气\n风机：中压风机\n炉脚：ф50㎜镀锌管及调节螺丝组成\n隔热层： 采用硅酸盐保温材料隔热","台",1,8000,8000,null,"厂制品"]
["AE10","炉拼台","860*350*800+400","说明：采用优质304不锈钢板制作\n台面：δ1.0mm、304不锈钢板\n前板,背板：δ1.0mm、304不锈钢板                             \n和炉灶配合安装","台",1,800,800,null,"厂制品"]
["AE11","电磁三门蒸箱","1000*900*1850","功率：25KW  电压：380V/50Hz   \n产品特点\n· 全新防水、防油烟、防虫设计\n· 优质304不锈钢外壳\n· 优质密封胶，严防渗水\n· 智能显示和自动报警装置\n· 18重安全保护设置，防止意外事故发生\n· 软启动技术，延长设备使用寿命\n· 智能化数字机芯，优质元件 ，工作稳定可靠\n· 定时功能，方便省心","台",1,16000,16000,null,"厂制品"]
["AE12","炉拼台","600*530*800+400","说明：采用优质304不锈钢板制作\n台面：δ1.0mm、304不锈钢板\n前板,背板：δ1.0mm、304不锈钢板                             \n和炉灶配合安装","台",1,800,800,null,"厂制品"]
["AE13","厨房灭火系统","双瓶组","1、装置具备自动和手动两种操作模式，并能给出报警信号：\n2、装置需在启动灭火的同时启动机械阀\n3、装置需与消防水（或者自来水）管路相连，系统启动后自控水阀等灭火剂喷洒完全后，再自动喷水：\n4、系统装置包括：控制箱（机械式）、管路、喷嘴、探测器、易熔连接片、金属拉索、滑轮三通、滑轮弯头等组成。其中控制箱由自动释放机构，驱动用高压氮气瓶、水流控制阀、液体药剂罐以及连接软管、单向阀、减压阀等构成;5、性能参数：a工作温度：4-55℃。b最高工作压力13Mpa、c单个喷嘴最大喷洒数率：0.22L/s、d灭火剂保持期：8年。E药剂喷洒时间：11秒。F灭火时间：3-5秒。 6、安装规范： a水压≥0.25Mpa、b下喷喷嘴需采取连接布置、间距600-650mm、角度正对所保护区域的中心位置","台",1,8500,8500]
["AE14","电力12盘蒸饭车","710*620*1540","说明：采用优质304不锈钢板制作                         \n采用耐高温聚胺酯整体发泡           \n一次性压成型的不锈钢层架\n全自动浮球进水功能,缺水自给,满水自停,安全卸气阀\n内部采用国际钢板1.0mm,∠30×2国际角钢，全自动进水，电量：12KW/3PH/380V。","台",1,2500,2500,null,"厂制品"]
["AF面点间"]
["AF01","挂墙双层架","1595*350*230","说明：采用优质304不锈钢板制作\n台面：δ1.0mm、304不锈钢板","米",1.59,500,795,null,"厂制品"]
["AF02","油烟净化一体机","L*1200*995","1.国标不锈钢材质，坚实耐用，美观抗油污\n2.烟罩净化一体化，节省厨房空间                                          3.双层除油分离技术，高效回收废油，纳米涂层，易清洗\n4.高密度304材质钢丝拦截网，高吸附，均衡整流\n5.高低压静电电场，油烟吸附率高达95%以上\n6.高转速大风量低噪音风机，更稳定，更安静\n7.可变口风口设计，安装无烦恼，适用更广\n8.管道无积油，免清洗，维护成本低，更安全\n9.一键启动，无需专业人士操作，更直观，更简便","米",3.6,4500,16200,null,"厂制品"]
["AF03","净水器","429*163*430mm","1.直饮\n2.工作原理：反渗透\n3.滤芯：PPC+RO","台",1,950,950]
["AF04","豆浆机","628*519*1174","1、生产容易：30-45升\n2、功能按键：豆浆、营养米糊、果蔬糜粥、绿豆沙、玉米糊、自动脱浆                3、预约烧水、复位\n4、制作时间：冷水：55-70min /开水：30-33min","台",1,2800,2800]
["AF05","单通移门荷台柜","800*700*800","说明：采用优质304不锈钢板制作\n台面:δ1.0mm、304不锈钢板\n侧板:δ1.0mm、304不锈钢板\n层板:δ1.0mm、304不锈钢板                         \n门板:δ1.0mm、304不锈钢板，单向移门\n台脚通:δ1.0mm*60重力脚\n衬板:δ15mm夹心板                                               \n支撑梁:不锈钢制作","台",1,2000,2000,null,"厂制品"]
["AF06","双缸双筛电炸炉连柜座","700*700*（850+60）","功率：24KW/380V\n1、采用面304，厚度2.0不锈钢板，余板及其他为201，厚度1.0。表面美观，易清洗，表面没有焊接打磨痕迹。\n2、采用温控器调节温度，用以控制电热管的发热温度，从而保证油温。\n3、仅需9.5分钟就能将油加热到195℃。\n4、带限温装置，超温保护功能，手动复位，安全可靠。\n5、内设置隔热板，提高热效率，防止外部过热。\n6、使用过程中，禁止手触摸电热管和油，以免造成烫伤。","台",1,7500,7500]
["AF07","不锈钢单门发酵箱","13盘","层数：13盘                              \n功率：2400W/220V                           \n箱体采用全无磁不锈钢材料,发泡不锈钢柜门加全钢化玻璃透窗。箱内热风循环技术,使箱内的温度环境更均匀,温度和湿度调节更精准。设有自动进水,全不锈钢管层架可自由调节发酵空间。","台",1,2600,2600]
["AF08","四门冰箱","1200*710*1980","容量：900L                          \n制冷方式：直冷 温度范围：保鲜-5℃～+5℃冷冻0℃～-15℃。\n1、板材内箱优质无磁不锈钢板；加厚型发泡层，提高保温性能，超大空间，冷却速度快，更节能；\n2、釆用独立机组双压缩机双冷凝器双冷凝风机可整体抽出机组拆卸更换，到场即可修复，无需现场检修","台",1,3900,3900]
["AF09","电饼铛","600*735*760","额定电压：220V/380V\n额定功率：4.5KW","台",1,950,950]
["AF10","烤箱","三层","三层六盘                                    \n功率：19.8KW/380V                        \n正面全无磁不锈钢材料，不锈钢门板配备双层耐高温钢化玻璃可视窗，远红外线电热管辐射加热，高密度保温棉使热力分布更均匀，中途无需转盘；数码显示温控仪表，上下层单独控温；蜂鸣报警装置。","台",1,5600,5600]
["AF11","挂墙双层架","3002*350*680","说明：采用优质304不锈钢板制作\n台面：δ1.0mm、304不锈钢板","米",3,500,1500,null,"厂制品"]
["AF12","挂墙工具架02","1500*250*450","说明：采用优质304不锈钢板制作\n台面：δ1.0mm、304不锈钢板","台",1,450,450,null,"厂制品"]
["AF13","大单星盆水池","1200*800*800+150","说明：采用优质304不锈钢板制作\n1、台面采用δ1.0mm、304不锈钢板；\n2、星盆斗采用δ1.0mm、304不锈钢机冲；              \n3、脚管采用1.0mmφ38、304不锈钢圆管；\n4、横档采用1.0mmφ25、304不锈钢圆管；\n5、调节脚采用全金属外包不锈钢子弹脚；\n6、大单星盆，配星盆去水槽，隔渣网。","台",1,950,{"$f":"ROUND(F72*G72,0)","v":950},null,"厂制品"]
["AF14","双温水龙头","双温","说明：采用不锈钢制作","台",1,80,80]
["AF15","搅拌机","30L","软启动、低噪音、适应性更强；按钮控制更加得心应手，还在按钮上增加了信号指示灯，大大提高了使用安全性","台",1,2800,2800]
["AF16","双动双速和面机 ","800*440*900","功率：2.2KW\n生产量：12KG\n1.变频器替代了机械齿轮换速，减少故障率。\n2.超低噪音。\n3.造型新颖美观。","台",1,5000,5000]
["AF17","饼盘车","500*700*1500","说明：采用优质304不锈钢板制作                                                                                                                                                              脚：1.0mm、304不锈钢管\n支架：38*25*1.0mm、304不锈钢方管层架：25*13、304板","台",1,1200,1200,null,"厂制品"]
["AF18","压面机","600*430*860","功率：1.5KW                          \n生产量：100KG/H                          \n不锈钢材质，软启动、低噪音、适应性更强；采用可折叠的进面盘、接面盘，密闭性好，更加干净卫生","台",1,2600,2600]
["AF19","木案工作台","1800*800*800","说明：\n1、台面采用木案板厚45mm，木质：松木；\n2、腿管采用ф51mm、304不锈钢圆管制作，壁厚1.0mm；\n3、调节脚采用全金属外包不锈钢子弹脚。","台",1,950,950,null,"厂制品"]
["AF20","面粉车","500*500*500","说明：采用优质304不锈钢板制作\n1、车身采用δ1.0mm、304不锈钢板；\n2、车盖采用δ1.0mm、304不锈钢板；\n3、不锈钢排铰连接；两边对开揿门；\n4、配4只防滑、耐磨万向轮优质胶轮，2只带刹车製。","台",2,950,1900,null,"厂制品"]
["AF21","粘捕式灭蝇灯","355*105*235","1.电压：220V\n2.功率:10W\n3.用胶：粘性持久，不易干胶，安全环保。苍蝇背景图案：根据苍蝇聚集采食习惯设计, 增加飞虫诱捕效果\n4.电子式镇流器：故障率低，寿命长，节能，具电压保护功能\n5.U型卡槽设计：使特殊波长灯管光频 直射到粘蝇板的 各点距离均等，加强对飞虫的吸引力和诱捕效果","台",1,50,50]
["AG凉菜间"]
["AG02","挂墙双层架","3610*350*680","说明：采用优质304不锈钢板制作\n台面：δ1.0mm、304不锈钢板","米",3.6,500,1800,null,"厂制品"]
["AH售买间"]
["AH02","干手器","240*240*230","功率：2KW\n风速：大于18M/S\n干手时间：12S\n防水等　级：IPX1\n规格：冷热型","台",1,80,80]
["AH03","洗手星","400*300*450","说明：采用优质304不锈钢板制作\n1、台面采用δ1.0mm、304不锈钢板；\n2、星盆斗采用δ1.0mm、304不锈钢机冲。             ","台",1,750,750,null,"厂制品"]
["AH04","粘捕式灭蝇灯","355*105*235","1.电压：220V\n2.功率:10W\n3.用胶：粘性持久，不易干胶，安全环保。苍蝇背景图案：根据苍蝇聚集采食习惯设计, 增加飞虫诱捕效果\n4.电子式镇流器：故障率低，寿命长，节能，具电压保护功能\n5.U型卡槽设计：使特殊波长灯管光频 直射到粘蝇板的 各点距离均等，加强对飞虫的吸引力和诱捕效果","台",2,50,100]
["AH05","单通移门荷台柜","600*700*800","说明：采用优质304不锈钢板制作\n台面:δ1.0mm、304不锈钢板\n侧板:δ1.0mm、304不锈钢板\n层板:δ1.0mm、304不锈钢板                         \n门板:δ1.0mm、304不锈钢板，单向移门\n台脚通:δ1.0mm*60重力脚\n衬板:δ15mm夹心板                                               \n支撑梁:不锈钢制作","台",1,2000,2000,null,"厂制品"]
["AH08","单通移门荷台柜","1440*670*800","说明：采用优质304不锈钢板制作\n台面:δ1.0mm、304不锈钢板\n侧板:δ1.0mm、304不锈钢板\n层板:δ1.0mm、304不锈钢板                         \n门板:δ1.0mm、304不锈钢板，单向移门\n台脚通:δ1.0mm*60重力脚\n衬板:δ15mm夹心板                                               \n支撑梁:不锈钢制作","台",3,2500,7500,null,"厂制品"]
["AH09","五格售饭柜","1800*700*800","说明：采用优质304不锈钢板制作\n1、台面采用δ1.0mm不锈钢板；\n2、水箱、围板用δ1.0mm不锈钢板；\n3、腿管采用1.0mm*38*38不锈钢方管；\n4、调节脚采用全金属外包不锈钢子弹脚；\n5、配不锈钢电热管，自动电控恒温式保温方式；\n6、水热式。配缺水断电保护装置                             \n电量：3KW/1PH/220V","台",3,2800,8400,null,"厂制品"]
["AH11","双层平板工作台带靠背","1500*700*800+150","说明：采用优质304不锈钢板制作\n台面:δ1.0mm、304不锈钢板\n层板:δ1.0mm、304不锈钢方板\n立柱:δ1.0mm*直径51、304不锈钢圆管                                         台脚通:ф51不锈钢连子弹脚  \n支撑梁:不锈钢制作","台",1,1200,1200,null,"厂制品"]
["AH12","单星水池","700*700*800+150","说明：采用优质304不锈钢板制作\n1、台面采用δ1.0mm、304不锈钢板；\n2、星盆斗采用δ1.0mm、304不锈钢机冲；              \n3、脚管采用1.0mmφ38、304不锈钢圆管；\n4、横档采用1.0mmφ25、304不锈钢圆管；\n5、调节脚采用全金属外包不锈钢子弹脚；\n6、单星盆，配星盆去水槽，隔渣网。","台",1,850,850,null,"厂制品"]
["*","水龙头","双温","说明：采用不锈钢制作","台",1,80,80]
["AH13","双门留样柜","1200*580*1970","制冷方式：直冷\n电压：220V                    \n防触电保护类型：I类","台",1,2600,2600]
["AH14","紫外线消毒灯","L=1200MM","说明：额定电压：103（V）                                        \n额定功率：TUV36W                                              \n紫外线杀菌灯长度1200MM","台",3,180,540]
["AH16","热汤池柜","600*700*800","说明：采用优质304不锈钢板制作\n1、台面采用δ1.0mm不锈钢板；\n2、水箱、围板用δ1.0mm不锈钢板；\n3、腿管采用1.0mm*38*38不锈钢方管；\n4、调节脚采用全金属外包不锈钢子弹脚；\n5、配不锈钢电热管，自动电控恒温式保温方式；\n6、水热式。配缺水断电保护装置                             \n电量：3KW/1PH/220V","台",1,1200,1200,null,"厂制品"]
["AH17","煮面连汤炉（圆孔）","1200*700*800","说明：采用优质304不锈钢板制作\n台面:δ1.0mm、304不锈钢板\n层板:δ1.0mm、304不锈钢方板","台",1,2600,2600,null,"厂制品"]
["AH18","暖饭车","700*700*800","说明：采用优质304不锈钢板制作              \n台面：δ1.0mm不锈钢板\n围板：δ1.0mm不锈钢板\n电压：220V     \n功率：2KW；\n底轮：2只万向轮，带刹车，2只定向轮。\n电加热：恒温控制；","台",4,1200,4800,null,"厂制品"]
["AH19","单通移门荷台柜","1800*700*800","说明：采用优质304不锈钢板制作\n台面:δ1.0mm、304不锈钢板\n侧板:δ1.0mm、304不锈钢板\n层板:δ1.0mm、304不锈钢板                         \n门板:δ1.0mm、304不锈钢板，单向移门\n台脚通:δ1.0mm*60重力脚\n衬板:δ15mm夹心板                                               \n支撑梁:不锈钢制作","台",1,2500,2500,null,"厂制品"]
["AH20","筷子消毒车","760*450*800","说明：采用优质304不锈钢板制作\n设双向导热风管道并保温装置。独立不锈钢电源控制箱原配件，自动温控，自动开/关机，热风循环式消毒、烘干。温度适中、调节方便。  ","台",1,950,950,null,"厂制品"]
["AH21","双孔污碟台柜连车","1500*700*800","说明：采用优质304不锈钢板制作\n1、台面:δ1.0mm，304不锈钢板\n2、横管:1.0mm*25*25圆管，304不锈钢\n3、立柱:1.0mm*51mm不锈钢管                      \n4、台脚通:δ1.0mm*直径43mm不锈钢连子弹脚 \n5、支撑梁:不锈钢制作","台",1,3000,3000,null,"厂制品"]
["AH22","油烟净化一体机","L*1200*995","1.国标不锈钢材质，坚实耐用，美观抗油污\n2.烟罩净化一体化，节省厨房空间                                          3.双层除油分离技术，高效回收废油，纳米涂层，易清洗\n4.高密度304材质钢丝拦截网，高吸附，均衡整流\n5.高低压静电电场，油烟吸附率高达95%以上\n6.高转速大风量低噪音风机，更稳定，更安静\n7.可变口风口设计，安装无烦恼，适用更广\n8.管道无积油，免清洗，维护成本低，更安全\n9.一键启动，无需专业人士操作，更直观，更简便","米",1.8,4500,8100,null,"厂制品"]
["AI洗碗间"]
["AI01","双星污碟台（左收残）","2300*800*800+150","说明：采用优质304不锈钢板制作\n1、台面采用δ1.0mm、304不锈钢板；\n2、星盆斗采用δ1.0mm、304不锈钢机冲；              \n3、脚管采用1.0mmφ38、304不锈钢圆管；\n4、横档采用1.0mmφ25、304不锈钢圆管；\n5、调节脚采用全金属外包不锈钢子弹脚；\n6、双星盆、配星盆去水槽，隔渣网。","台",1,1800,1800,null,"厂制品"]
["AI01-2","水龙头","双温","说明：采用不锈钢制作","台",2,80,160]
["AI01-1","高压花洒龙头","JXD-5805A","1.铜螺杆阀芯，一字手柄                                                              2.开单孔22mm安装                                 \n3.不锈钢软管配大流量喷阀，耐热手柄                     \n4.纯黄铜底座","台",1,650,650]
["AI02","高压花洒龙头","JXD-5805A","1.铜螺杆阀芯，一字手柄                                                              2.开单孔22mm安装                                 \n3.不锈钢软管配大流量喷阀，耐热手柄                     \n4.纯黄铜底座","台",1,650,650]
["AI03","电热水器","60L","1.密闭型储水式电热水器                                   \n2.款式: 横式                                 \n3.能效等级: 一级","台",1,1000,1000]
["AI04","三星水池","1800*700*800+150","说明：采用优质304不锈钢板制作\n1、台面采用δ1.0mm、304不锈钢板；\n2、星盆斗采用δ1.0mm、304不锈钢机冲；              \n3、脚管采用1.0mmφ38、304不锈钢圆管；\n4、横档采用1.0mmφ25、304不锈钢圆管；\n5、调节脚采用全金属外包不锈钢子弹脚；\n6、三星盆、配星盆去水槽，隔渣网。","台",1,1500,1500,null,"厂制品"]
["*","双温水龙头","双温","说明：采用不锈钢制作","台",3,80,240]
["AI05","四层栅格层架","1200*500*1500","说明：采用优质304不锈钢管制作\n1、立柱采用1.0mm38*38、304不锈钢方管；\n2、横档采用1.0mm38*25、中间25方管、304不锈钢方管；\n3、调节脚采用全金属外包不锈钢可调式子弹脚；\n4、每层为格栅式结构，四层。 ","台",1,1200,1200,null,"厂制品"]
["AI07","双门不锈钢门消毒柜","1100*500*1800","容积：800L                                   \n功率：3500W  电压：220V/50HZ                   \n整体发泡,无指纹全无磁不锈钢箱体,加深加粗全无磁消毒柜篮筐,指弹头柜脚,热风循环高温消毒。双门采用双旋钮控制，可单室独立工作也可双室同时工作。","台",2,3600,7200,null,"厂制品"]
["AI08","双孔污碟台柜连车","1500*700*800","说明：采用优质304不锈钢板制作\n1、台面:δ1.0mm，304不锈钢板\n2、横管:1.0mm*25*25圆管，304不锈钢\n3、立柱:1.0mm*51mm不锈钢管                      \n4、台脚通:δ1.0mm*直径43mm不锈钢连子弹脚 \n5、支撑梁:不锈钢制作","台",1,3000,3000,null,"厂制品"]
["AI09","紫外线消毒灯","L=1200MM","说明：额定电压：103（V）                                        额定功率：TUV36W                                              紫外线杀菌灯长度1200MM","台",2,180,360]
["AI10","粘捕式灭蝇灯","355*105*235","1.电压：220V\n2.功率:10W\n3.用胶：粘性持久，不易干胶，安全环保。苍蝇背景图案：根据苍蝇聚集采食习惯设计, 增加飞虫诱捕效果\n4.电子式镇流器：故障率低，寿命长，节能，具电压保护功能\n5.U型卡槽设计：使特殊波长灯管光频 直射到粘蝇板的 各点距离均等，加强对飞虫的吸引力和诱捕效果","台",1,50,50]
["AI11","洁碟台A","1500*800*800+150","说明：采用优质304不锈钢板制作\n台面:δ1.0mm、304不锈钢板\n层板:δ1.0mm、304不锈钢方板\n立柱:δ1.0mm*直径51、304不锈钢圆管                                         台脚通:ф51不锈钢连子弹脚  \n支撑梁:不锈钢制作\n15mm夹心板    ","台",1,1200,1200,null,"厂制品"]
["AI12","平放式洗碗机","1600*900*1450","功率：47KW/380V                            \n最大洗涤量：800套/小时                 \n●采用国标 304 不锈钢材质，坚实耐用，符合食品接触安全要求\n●主洗温度 60-70℃，漂洗温度 82-95℃，消毒更彻底\n●食品级传动平齿链带材质，耐高温，抗老化，更卫生\n●一键启动，无需专业人士操作，更直观，更简便\n●不锈钢喷淋臂，内凹式清洗孔设计，防堵塞，清洗无死角\n●主洗采用上四下三组喷淋臂，更强劲，抽拉式可拆卸，易清洗\n●电机扭矩保护系统，防止餐具滑落损坏设备\n●餐具出口防卡装置，多重保护感应系统，保障设备无故障运行\n●控制箱采用机电控制系统，耐环境，耐使用，寿命长，维修方便，维修成本低\n●平放式洗碗机带压链设计，适合各种异型餐具清洗                                                       ","台",1,27000,27000]
["AI14","不锈钢油网烟罩","1800*1100*500","说明：采用优质304不锈钢板制作\n厚度：δ1.0mm、304不锈钢板","米",1.8,950,1710,null,"厂制品"]
["AI13","拖把池","1200*500*1705","说明：采用优质304不锈钢板制作\n1、台面采用δ1.0mm、304不锈钢板；\n2、星盆斗采用δ1.0mm、304不锈钢机冲；              \n3、脚管采用1.0mmφ38、304不锈钢圆管；\n4、横档采用1.0mmφ25、304不锈钢圆管；\n5、调节脚采用全金属外包不锈钢子弹脚；\n6、单星盆，配星盆去水槽，隔渣网。","台",1,950,950,null,"厂制品"]
["BA售买间"]
["BA03","五格售饭柜","1800*700*800","说明：采用优质304不锈钢板制作\n1、台面采用δ1.0mm不锈钢板；\n2、水箱、围板用δ1.0mm不锈钢板；\n3、腿管采用1.0mm*38*38不锈钢方管；\n4、调节脚采用全金属外包不锈钢子弹脚；\n5、配不锈钢电热管，自动电控恒温式保温方式；\n6、水热式。配缺水断电保护装置                             \n电量：3KW/1PH/220V","台",3,2800,8400,null,"厂制品"]
["BA04","热汤池柜","600*700*800","说明：采用优质304不锈钢板制作\n1、台面采用δ1.0mm不锈钢板；\n2、水箱、围板用δ1.0mm不锈钢板；\n3、腿管采用1.0mm*38*38不锈钢方管；\n4、调节脚采用全金属外包不锈钢子弹脚；\n5、配不锈钢电热管，自动电控恒温式保温方式；\n6、水热式。配缺水断电保护装置                             \n电量：3KW/1PH/220V","台",1,1200,1200,null,"厂制品"]
["BA05","煮面连汤炉（圆孔）","1200*700*800","说明：采用优质304不锈钢板制作\n台面:δ1.0mm、304不锈钢板\n层板:δ1.0mm、304不锈钢方板","台",1,2600,2600,null,"厂制品"]
["BA06","暖饭车","700*700*800","说明：采用优质304不锈钢板制作              \n台面：δ1.0mm不锈钢板\n围板：δ1.0mm不锈钢板\n电压：220V     \n功率：2KW；\n底轮：2只万向轮，带刹车，2只定向轮。\n电加热：恒温控制；","台",4,1200,4800,null,"厂制品"]
["BA07","紫外线消毒灯","L=1200MM","说明：额定电压：103（V）                                        \n额定功率：TUV36W                                              \n紫外线杀菌灯长度1200MM","台",3,180,540]
["BA08","豆浆机","628*519*1174","1、生产容易：30-45升\n2、功能按键：豆浆、营养米糊、果蔬糜粥、绿豆沙、玉米糊、自动脱浆                3、预约烧水、复位\n4、制作时间：冷水：55-70min /开水：30-33min","台",1,2600,2600]
["BA09","单通移门荷台柜","1500*700*800","说明：采用优质304不锈钢板制作\n台面:δ1.0mm、304不锈钢板\n侧板:δ1.0mm、304不锈钢板\n层板:δ1.0mm、304不锈钢板                         \n门板:δ1.0mm、304不锈钢板，单向移门\n台脚通:δ1.0mm*60重力脚\n衬板:δ15mm夹心板                                               \n支撑梁:不锈钢制作","台",2,2500,5000,null,"厂制品"]
["BA10","粘捕式灭蝇灯","355*105*235","1.电压：220V\n2.功率:10W\n3.用胶：粘性持久，不易干胶，安全环保。苍蝇背景图案：根据苍蝇聚集采食习惯设计, 增加飞虫诱捕效果\n4.电子式镇流器：故障率低，寿命长，节能，具电压保护功能\n5.U型卡槽设计：使特殊波长灯管光频 直射到粘蝇板的 各点距离均等，加强对飞虫的吸引力和诱捕效果","台",1,50,50]
["BA11","双层平板工作台带靠背","1200*700*800+100","说明：采用优质304不锈钢板制作\n台面:δ1.0mm、304不锈钢板\n层板:δ1.0mm、304不锈钢方板\n立柱:δ1.0mm*直径51、304不锈钢圆管                                         台脚通:ф51不锈钢连子弹脚  \n支撑梁:不锈钢制作","台",1,1100,1100,null,"厂制品"]
["BA12","单星水池","700*700*800+150","说明：采用优质304不锈钢板制作\n1、台面采用δ1.0mm、304不锈钢板；\n2、星盆斗采用δ1.0mm、304不锈钢机冲；              \n3、脚管采用1.0mmφ38、304不锈钢圆管；\n4、横档采用1.0mmφ25、304不锈钢圆管；\n5、调节脚采用全金属外包不锈钢子弹脚；\n6、单星盆，配星盆去水槽，隔渣网。","台",1,850,850,null,"厂制品"]
["*","水龙头","双温","说明：采用不锈钢制作","台",1,80,80]
["BA13","双门留样柜","1200*580*1970","制冷方式：直冷\n电压：220V                    \n防触电保护类型：I类","台",1,2600,2600]
["BA14","单通移门荷台柜","1800*700*800","说明：采用优质304不锈钢板制作\n台面:δ1.0mm、304不锈钢板\n侧板:δ1.0mm、304不锈钢板\n层板:δ1.0mm、304不锈钢板                         \n门板:δ1.0mm、304不锈钢板，单向移门\n台脚通:δ1.0mm*60重力脚\n衬板:δ15mm夹心板                                               \n支撑梁:不锈钢制作","台",1,2500,2500,null,"厂制品"]
["BA15","筷子消毒车","760*450*800","说明：采用优质304不锈钢板制作\n设双向导热风管道并保温装置。独立不锈钢电源控制箱原配件，自动温控，自动开/关机，热风循环式消毒、烘干。温度适中、调节方便。  ","台",1,950,950,null,"厂制品"]
["BA16","双孔污碟台柜连车","1500*700*800","说明：采用优质304不锈钢板制作\n1、台面:δ1.0mm，304不锈钢板\n2、横管:1.0mm*25*25圆管，304不锈钢\n3、立柱:1.0mm*51mm不锈钢管                      \n4、台脚通:δ1.0mm*直径43mm不锈钢连子弹脚 \n5、支撑梁:不锈钢制作","台",1,1200,1200,null,"厂制品"]
["BA17","净水器","429*163*430mm","1.直饮\n2.工作原理：反渗透\n3.滤芯：PPC+RO","台",1,950,950]
["BA18","油烟净化一体机","L*1200*995","1.国标不锈钢材质，坚实耐用，美观抗油污\n2.烟罩净化一体化，节省厨房空间                                          3.双层除油分离技术，高效回收废油，纳米涂层，易清洗\n4.高密度304材质钢丝拦截网，高吸附，均衡整流\n5.高低压静电电场，油烟吸附率高达95%以上\n6.高转速大风量低噪音风机，更稳定，更安静\n7.可变口风口设计，安装无烦恼，适用更广\n8.管道无积油，免清洗，维护成本低，更安全\n9.一键启动，无需专业人士操作，更直观，更简便","米",1.8,4500,{"$f":"ROUND(F136*G136,0)","v":8100},null,"厂制品"]
["BB洗碗间"]
["BB01-1","高压花洒龙头","JXD-5805A","1.铜螺杆阀芯，一字手柄                                                              2.开单孔22mm安装                                 \n3.不锈钢软管配大流量喷阀，耐热手柄                     \n4.纯黄铜底座","台",1,650,650]
["BB01","双星污碟台（左收残）","2100*800*800+150","说明：采用优质304不锈钢板制作\n1、台面采用δ1.0mm、304不锈钢板；\n2、星盆斗采用δ1.0mm、304不锈钢机冲；              \n3、脚管采用1.0mmφ38、304不锈钢圆管；\n4、横档采用1.0mmφ25、304不锈钢圆管；\n5、调节脚采用全金属外包不锈钢子弹脚；\n6、双星盆、配星盆去水槽，隔渣网。","台",1,1800,1800,null,"厂制品"]
["BB01-2","双温水龙头","双温","说明：采用不锈钢制作","台",1,80,80]
["BB02","双温高压花洒龙头","JXD-5805A","1.铜螺杆阀芯，一字手柄                                                              2.开单孔22mm安装                                 \n3.不锈钢软管配大流量喷阀，耐热手柄                     \n4.纯黄铜底座","台",1,650,650]
["BB03","双门不锈钢门消毒柜","1100*500*1800","容积：800L                                   \n功率：3500W  电压：220V/50HZ                   \n整体发泡,无指纹全无磁不锈钢箱体,加深加粗全无磁消毒柜篮筐,指弹头柜脚,热风循环高温消毒。双门采用双旋钮控制，可单室独立工作也可双室同时工作。","台",3,3600,10800,null,"厂制品"]
["BB04","热风保温餐车","1540*975*1795","功率：5.24kw\n电压：220-240v\n容量：22层\n材料：全不锈钢材质，干净卫生，容易清洁。\n温度：采用双风机热风循环保温功能，并带有湿度保温功能，可调温控自动恒温功能，带数显温度表，带放水阀装置。[配有网架或可选择食物盆]","台",2,6500,13000]
["BB05","紫外线消毒灯","L=1200MM","说明：额定电压：103（V）                                        额定功率：TUV36W                                              紫外线杀菌灯长度1200MM","台",2,180,360]
["BB06","电热水器","60L","1.密闭型储水式电热水器                                   \n2.款式: 横式                                 \n3.能效等级: 一级","台",2,1000,2000]
["BB07","三星水池","1800*700*800+150","说明：采用优质304不锈钢板制作\n1、台面采用δ1.0mm、304不锈钢板；\n2、星盆斗采用δ1.0mm、304不锈钢机冲；              \n3、脚管采用1.0mmφ38、304不锈钢圆管；\n4、横档采用1.0mmφ25、304不锈钢圆管；\n5、调节脚采用全金属外包不锈钢子弹脚；\n6、三星盆、配星盆去水槽，隔渣网。","台",1,1500,1500,null,"厂制品"]
["BB08","双温水龙头","双温","说明：采用不锈钢制作","台",3,80,240]
["BB09","四层栅格层架","1200*500*1500","说明：采用优质304不锈钢管制作\n1、立柱采用1.0mm38*38、304不锈钢方管；\n2、横档采用1.0mm38*25、中间25方管、304不锈钢方管；\n3、调节脚采用全金属外包不锈钢可调式子弹脚；\n4、每层为格栅式结构，四层。 ","台",1,1200,1200,null,"厂制品"]
["BB10","双孔污碟台柜连车","1500*700*800","说明：采用优质304不锈钢板制作\n1、台面:δ1.0mm，304不锈钢板\n2、横管:1.0mm*25*25圆管，304不锈钢\n3、立柱:1.0mm*51mm不锈钢管                      \n4、台脚通:δ1.0mm*直径43mm不锈钢连子弹脚 \n5、支撑梁:不锈钢制作","台",1,3000,3000,null,"厂制品"]
["BB11","洁碟台A","1500*800*800+150","说明：采用优质304不锈钢板制作\n台面:δ1.0mm、304不锈钢板\n层板:δ1.0mm、304不锈钢方板\n立柱:δ1.0mm*直径51、304不锈钢圆管                                         台脚通:ф51不锈钢连子弹脚  \n支撑梁:不锈钢制作\n15mm夹心板    ","台",1,1200,1200,null,"厂制品"]
["BB12","平放式洗碗机","1600*900*1450","功率：47KW/380V                            \n最大洗涤量：800套/小时                 \n●采用国标 304 不锈钢材质，坚实耐用，符合食品接触安全要求\n●主洗温度 60-70℃，漂洗温度 82-95℃，消毒更彻底\n●食品级传动平齿链带材质，耐高温，抗老化，更卫生\n●一键启动，无需专业人士操作，更直观，更简便\n●不锈钢喷淋臂，内凹式清洗孔设计，防堵塞，清洗无死角\n●主洗采用上四下三组喷淋臂，更强劲，抽拉式可拆卸，易清洗\n●电机扭矩保护系统，防止餐具滑落损坏设备\n●餐具出口防卡装置，多重保护感应系统，保障设备无故障运行\n●控制箱采用机电控制系统，耐环境，耐使用，寿命长，维修方便，维修成本低\n●平放式洗碗机带压链设计，适合各种异型餐具清洗                                                       ","台",1,27000,27000]
["BB13","不锈钢油网烟罩","1800*1100*500","说明：采用优质304不锈钢板制作\n厚度：δ1.0mm、304不锈钢板","米",1.8,950,1710,null,"厂制品"]
["BB14","传菜食梯（验收）","二层二站","两层两站、推车式\n（不含井道基础建设）","台",1,35000,35000]
["其它"]
[1,"感应水池水龙头",null,"全自动红外线感应，精铜龙头，晶钻电镀，坚固耐用。","套",4,80,320]
[2,"不锈钢份数盆",null,"说明：采用优质304不锈钢制作","个",30,60,1800,null,"厂制品"]
[3,"蒸饭车饭盘","与设备匹配","说明：采用优质304不锈钢制作","个",36,20,720,null,"厂制品"]
[4,"烤盘","与设备匹配",null,"个",6,35,210,null,"厂制品"]
[5,"保温车汤桶","与设备匹配","食品级304不锈钢","个",8,150,1200,null,"厂制品"]
[6,"挡鼠板","H:600mm","说明：采用不锈钢板制作","个",6,300,1800,null,"厂制品"]
["三层烹饪/面点排烟管道设备"]
[1,"不锈钢灶后挡板","L*1000*20","说明：采用优质304不锈钢板制作\n厚度：δ1.0mm、304不锈钢板","M2",17.8,400,7120,null,"厂制品"]
[2,"商用风柜","15KW","说明：动力电机即风柜心脏，采用名牌电机，线圈，使其动能更强劲且噪音更低，振动更小。转动叶轮采用多翼式铝制合金超薄叶片组成，重量更轻，使其转动负荷更小，两大优势决定其高性能，内配隔音层网状，达到消音效果。","台",1,8500,8500]
[3,"风机启动保护器","与风机配套","说明:内配置空开、交流接触器、电动机综合保护器、第二次启动装置；通过低电压启动高电压，对风柜起到，缺相自动断电、启动电流过大时自动断电、漏电时自动断电；\n可有效减少风机在启动时惯性对叶轮的冲击和电动机启动过大的启动电流对供电线路的影响，并且对风机电动机起到短路，缺相，过载，失压等保护作用。","台",1,800,800]
[4,"风机支架及托油盘","定制","说明:采用10#槽钢,2度油漆,防锈处理","套",1,1200,1200,"现场定制","厂制品"]
[2,"低空油烟净化器","42000风量","电压选择低能耗电源电路，耗电省机体：采用模具冲压一次成型、箱体内外喷塑处理，内部单元极板采用优质轻型铝板，防腐性能好、使用寿命长。\n工作原理：内部装有独特的油类碰吸单元，油烟经过净化器，在高压等离子电场的作用下，将微小的油颗粒与气体进行电离荷电，带电的微小离子（油颗粒）被吸附单元所收集，并流入和沉积到净化器的储油箱内，烟尘内的有害气体，被电场内所产生的臭氧所杀菌，并去除了异味，有害气体被除掉，洁净的空气经出风口排出。","台",1,24000,24000]
[2,"净化器支架","定制","说明:采用10#槽钢,2度油漆,防锈处理","台",1,1200,1200]
[5,"不锈钢烟管","35000*500*500","说明：采用优质304不锈钢板制作\n厚度：δ1.0mm、304不锈钢板","M2",76,260,19760,null,"厂制品"]
[6,"不锈钢烟管","35000*1500*500","说明：采用优质304不锈钢板制作\n厚度：δ1.0mm、304不锈钢板","M2",138,260,35880,null,"厂制品"]
[7,"排烟弯头","500*500","说明：采用优质304不锈钢板制作\n厚度：δ1.0mm、304不锈钢板","M2",18,200,3600,null,"厂制品"]
[8,"排烟弯头","1500*500","说明：采用优质304不锈钢板制作\n厚度：δ1.0mm、304不锈钢板","M2",15,280,4200,null,"厂制品"]
[9,"软接","定制","采用优质帆布","套",1,200,200,null,"厂制品"]
[10,"烟管内置法兰","定制","说明：采用优质304不锈钢板制作","副",20,"/",0,null,"厂制品"]
[11,"三角架","定制","说明：采用防锈喷漆角铁","副",10,50,500,null,"厂制品"]
[12,"变径","定制","说明：采用优质304不锈钢板制作\n板厚：δ1.0mm不锈钢","套",1,800,800,null,"厂制品"]
[13,"防火阀","定制","说明：采用A3钢板作制，外涂防火、防锈漆。","个",6,900,5400,null,"厂制品"]
[14,"止回阀","定制","说明：采用A3钢板作制，外涂防火、防锈漆。","个",1,600,600,null,"厂制品"]
["三层粉面排烟设备",{"$nulls":8},"厂制品"]
[1,"不锈钢烟管","5000*400*400","说明：采用优质304不锈钢板制作\n厚度：δ1.0mm、304不锈钢板","M2",8,260,2080,null,"厂制品"]
[2,"排烟弯头","400*400","说明：采用优质304不锈钢板制作\n厚度：δ1.0mm、304不锈钢板","M2",3,280,840,null,"厂制品"]
[3,"烟管内置法兰","定制","说明：采用优质304不锈钢板制作","副",5,"/",0,null,"厂制品"]
[4,"三角架","定制","说明：采用防锈喷漆角铁","副",2,50,100,null,"厂制品"]
[5,"百叶窗","定制","说明：采用优质铝合金","个",1,150,150,null,"厂制品"]
["三层洗碗间排烟设备",{"$nulls":8},"厂制品"]
[1,"不锈钢烟罩上封板","L*1000*20","说明：采用优质304不锈钢板制作\n厚度：δ1.0mm、304不锈钢板","M2",4,400,1600,null,"厂制品"]
[2,"轴流风机","5号","运转平稳,效率高,噪声低,能耗省","台",1,1200,1200]
[3,"风机启动保护器","与风机配套","说明:内配置空开、交流接触器、电动机综合保护器、第二次启动装置；通过低电压启动高电压，对风柜起到，缺相自动断电、启动电流过大时自动断电、漏电时自动断电；\n可有效减少风机在启动时惯性对叶轮的冲击和电动机启动过大的启动电流对供电线路的影响，并且对风机电动机起到短路，缺相，过载，失压等保护作用。","台",1,650,650]
[4,"风机支架及托油盘","定制","说明:采用10#槽钢,2度油漆,防锈处理","套",1,500,500,"现场定制","厂制品"]
[5,"不锈钢烟管","8000*400*400","说明：采用优质304不锈钢板制作\n厚度：δ1.0mm、304不锈钢板","M2",13,260,3380,null,"厂制品"]
[6,"排烟弯头","400*400","说明：采用优质304不锈钢板制作\n厚度：δ1.0mm、304不锈钢板","M2",11,280,3080,null,"厂制品"]
[7,"软接","定制","采用优质帆布","套",1,200,200,null,"厂制品"]
[8,"烟管内置法兰","定制","说明：采用优质304不锈钢板制作","副",8,"/",0,null,"厂制品"]
[9,"三角架","定制","说明：采用防锈喷漆角铁","副",4,50,200,null,"厂制品"]
[10,"变径","定制","说明：采用优质304不锈钢板制作\n板厚：δ1.0mm不锈钢","套",1,950,950,null,"厂制品"]
[11,"百叶窗","定制","说明：采用优质铝合金","个",1,180,180,null,"厂制品"]
["四层粉面排烟设备",{"$nulls":8},"厂制品"]
[1,"不锈钢烟管","5000*400*400","说明：采用优质304不锈钢板制作\n厚度：δ1.0mm、304不锈钢板","M2",8,260,2080,null,"厂制品"]
[2,"排烟弯头","400*400","说明：采用优质304不锈钢板制作\n厚度：δ1.0mm、304不锈钢板","M2",3,280,840,null,"厂制品"]
[3,"烟管内置法兰","定制","说明：采用优质304不锈钢板制作","副",5,"/",0,null,"厂制品"]
[4,"三角架","定制","说明：采用防锈喷漆角铁","副",2,50,{"$f":"ROUND(F200*G200,0)","v":100},null,"厂制品"]
[5,"百叶窗","定制","说明：采用优质铝合金","个",1,180,180,null,"厂制品"]
["四层洗碗间排烟设备"]
[1,"不锈钢烟罩上封板","L*1000*20","说明：采用优质304不锈钢板制作\n厚度：δ1.0mm、304不锈钢板","M2",4,500,2000,null,"厂制品"]
[2,"轴流风机","5号","运转平稳,效率高,噪声低,能耗省","台",1,1200,1200]
[3,"风机启动保护器","与风机配套","说明:内配置空开、交流接触器、电动机综合保护器、第二次启动装置；通过低电压启动高电压，对风柜起到，缺相自动断电、启动电流过大时自动断电、漏电时自动断电；\n可有效减少风机在启动时惯性对叶轮的冲击和电动机启动过大的启动电流对供电线路的影响，并且对风机电动机起到短路，缺相，过载，失压等保护作用。","台",1,650,650]
[4,"风机支架及托油盘","定制","说明:采用10#槽钢,2度油漆,防锈处理","套",1,500,500,"现场定制","厂制品"]
[5,"不锈钢烟管","15000*400*400","说明：采用优质304不锈钢板制作\n厚度：δ1.0mm、304不锈钢板","M2",24,260,6240,null,"厂制品"]
[6,"排烟弯头","400*400","说明：采用优质304不锈钢板制作\n厚度：δ1.0mm、304不锈钢板","M2",5,280,1400,null,"厂制品"]
[7,"软接","定制","采用优质帆布","套",1,200,200,null,"厂制品"]
[8,"烟管内置法兰","定制","说明：采用优质304不锈钢板制作","副",8,"/",0,null,"厂制品"]
[9,"三角架","定制","说明：采用防锈喷漆角铁","副",4,50,200,null,"厂制品"]
[10,"变径","定制","说明：采用优质304不锈钢板制作\n板厚：δ1.0mm不锈钢","套",1,950,950,null,"厂制品"]
[11,"百叶窗","定制","说明：采用优质铝合金","个",1,180,180,null,"厂制品"]
[12,"防火阀","定制","说明：采用A3钢板作制，外涂防火、防锈漆。","个",1,800,800,null,"厂制品"]
["三层新风排烟设备"]
[1,"商用风柜","3KW","说明：动力电机即风柜心脏，采用名牌电机，进口电机线圈，使其动能更强劲且噪音更低，振动更小。转动叶轮采用多翼式铝制合金超薄叶片组成，重量更轻，使其转动负荷更小，两大优势决定其高性能，内配隔音层网状，达到消音效果。","台",1,4500,4500]
[2,"新风机启动保护器","与风机配套","说明:内配置空开、交流接触器、电动机综合保护器、第二次启动装置；通过低电压启动高电压，对风柜起到，缺相自动断电、启动电流过大时自动断电、漏电时自动断电；\n可有效减少风机在启动时惯性对叶轮的冲击和电动机启动过大的启动电流对供电线路的影响，并且对风机电动机起到短路，缺相，过载，失压等保护作用。","个",1,650,650]
[3,"风机支架","定制","说明:采用10#槽钢,2度油漆,防锈处理","个",1,800,800,null,"厂制品"]
[4,"风机减震器","定制","说明:采用10#槽钢,2度油漆,防锈处理","套",1,500,500,null,"厂制品"]
[5,"鲜风管","32000*500*500","说明：采用优质304不锈钢板制作\n厚度：δ1.0mm、304不锈钢板","M2",55,260,14300,null,"厂制品"]
[6,"排烟弯头","500*500","说明：采用优质304不锈钢板制作\n厚度：δ1.0mm、304不锈钢板","M2",10,280,2800,null,"厂制品"]
[7,"鲜风调风阀","烟管配套","说明:采用A3钢板作制，外涂防火、防锈漆。","个",1,800,800,null,"厂制品"]
[8,"变径方变圆","定制","说明：采用优质304不锈钢板制作\n板厚δ1.0mm不锈钢","副",16,950,15200,null,"厂制品"]
[9,"软接","定制","精制帆布","个",16,200,3200,null,"厂制品"]
[10,"出风口散流器","定制",null,"副",16,100,1600,null,"厂制品"]
[11,"软接","定制","精制帆布","个",1,200,200,null,"厂制品"]
["设备合计",null,{"$f":"H227","v":727470},{"$nulls":4},{"$f":"SUM(H4:H226)","v":727470}]
[1,"吊装安装调试费",null,null,"项",1,5500,{"$f":"ROUND(G228*F228,0)","v":5500}]
[2,"五金配件辅助材料费",null,null,"项",1,3500,{"$f":"ROUND(G229*F229,0)","v":3500}]
[3,"运输搬运费",null,null,"项",1,3500,{"$f":"ROUND(G230*F230,0)","v":3500}]
[4,"税金",{"v":0.13,"d":"13%"},null,"项",1,{"$f":"H231","v":96196.1},{"$f":"(H227+SUM(H228:H230))*13%","v":{"v":96196.1,"d":"96196.10"}}]
["全部合计",null,{"$f":"H232","v":836166.1},{"$nulls":4},{"$f":"SUM(H227:H231)","v":{"v":836166.1,"d":"¥836,166.10"}}]
["说明：以上图片为招标采购控制价参考样式，具体以业主单位需求为准，包含且不限于配合业主单位相关采购需求，实际供货与本招标清单不符的结算按实调整。"]